Cogmind - Beta 14 @@@ ROGUE MODE // 2024.09.30 @ 06:06:03 Player: Some Pennies Result: Destroyed by MA-A72(R) with Subdweller Machine Gun Performance ------------- Evolutions (0) 0 Regions Visited (2) 400 Robots Destroyed (55) 275 Value Destroyed (1147) 1147 Prototype IDs (4) 80 Alien Tech Used (0) 0 Bonus (0) 0 TOTAL SCORE: 1902 Bonus ------- None Cogmind --------- Core Integrity 0/250 Matter 290/300 Energy 200/200 System Corruption 0% Temperature Cool (0) Movement Treading (360) Ox2 Location -10/Subcaves Parts ------- > --- POWER (1) -------- Subdweller Power Source > --- PROPULSION (2) --- Spiked Treads Spiked Treads > --- UTILITY (2) ------ Huge Storage Unit Makeshift Light Armor Plating > --- WEAPON (2) ------- Advanced Beam Cannon Subdweller Beam Cannon > --- INVENTORY (25) --- Wheel Subdweller Monowheel Heat Sink Medium Storage Unit High-capacity Matter Pod (132) Structural Scanner Signal Interpreter Improved Terrain Scanner Seismic Detector ECM Suite Hacking Suite Hacking Suite Makeshift System Shield Light EM Pulse Cannon Light EM Pulse Cannon Light EM Pulse Cannon Light EM Pulse Cannon Advanced Beam Cannon Advanced Beam Cannon Battle Rifle Mini Grenade Launcher Mini Grenade Launcher Mini Grenade Launcher Multitool Makeshift Hammer Peak State ------------ > --- POWER ------------ Subdweller Power Source > --- PROPULSION ------- Spiked Treads Spiked Treads > --- UTILITY ---------- Huge Storage Unit Makeshift Light Armor Plating > --- WEAPON ----------- Advanced Beam Cannon Subdweller Beam Cannon > --- INVENTORY -------- Wheel Subdweller Monowheel Heat Sink Medium Storage Unit High-capacity Matter Pod Structural Scanner Signal Interpreter Improved Terrain Scanner Seismic Detector ECM Suite Hacking Suite Hacking Suite Makeshift System Shield Light EM Pulse Cannon Light EM Pulse Cannon Light EM Pulse Cannon Light EM Pulse Cannon Advanced Beam Cannon Advanced Beam Cannon Battle Rifle Mini Grenade Launcher Mini Grenade Launcher Mini Grenade Launcher Multitool Makeshift Hammer [Rating: 21] Favorites ----------- Power Ion Engine Engine Ion Engine Propulsion Light Treads Treads Light Treads Wheel Wheel Utility Huge Storage Unit Device Seismic Detector Storage Huge Storage Unit Protection Makeshift Light Armor Plating Weapon Advanced Beam Cannon Energy Gun EM Pulse Gun Energy Cannon Advanced Beam Cannon Launcher Mini Grenade Launcher Impact Weapon Makeshift Hammer Build | -11 -10 -10 ------- Run | Yrd Mat Sub Slots Evolved . | . . . Power . | . . . Propulsion . | . . . Utility . | . . . Weapon . | . . . Parts Attached 53 | 9 14 30 Power 4 | 1 2 1 Engine 4 | 1 2 1 Core . | . . . Reactor . | . . . Propulsion 9 | 2 2 5 Treads 7 | 2 1 4 Leg . | . . . Wheel 2 | . 1 1 Hover . | . . . Flight . | . . . Utility 14 | 2 4 8 Device 7 | 1 2 4 Storage 3 | 1 2 . Processor . | . . . Hackware . | . . . Protection 4 | . . 4 Artifact . | . . . Weapon 26 | 4 6 16 Energy Gun 4 | 4 . . Energy Cannon 13 | . 5 8 Ballistic Gun . | . . . Ballistic Cannon . | . . . Launcher 8 | . 1 7 Special Weapon . | . . . Impact Weapon 1 | . . 1 Slashing Weapon . | . . . Piercing Weapon . | . . . Special Melee Weapon . | . . . Unidentified Prototypes 1 | . 1 . Parts Lost 3 | . 1 2 Power 1 | . . 1 Propulsion 2 | . 1 1 Utility . | . . . Weapon . | . . . Highest Loss Streak 1 | . 1 1 To Critical Strikes . | . . . Average Slot Usage (%) 96 | . 99 94 Engine 10 | . 14 8 Treads 27 | . 26 27 Device 13 | . 14 13 Storage 14 | . 14 14 Energy Cannon 26 | . 27 26 Peak Build Rating 21 | 7 17 21 Average Rating 15 | 5 14 16 On Entrance 7 | . 7 15 Naked Turns . | . . . Heaviest Build 101 | 15 94 101 Greatest Support 40 | 40 40 40 Greatest Overweight (x) 9 | . 9 9 Average Overweight (x) 2 | . 2 2 Largest Inventory Capacity 25 | 8 25 25 Average Capacity 24 | 7 23 25 Most Carried 25 | 5 25 25 Average Carried 23 | 2 21 24 Final Capacity 25 | 8 25 25 Final Carried 25 | 4 25 25 Class Distribution -------------------- 99% | Mutant Dominant Class ---------------- Mutant | -10/Materials Mutant | -10/Subcaves Resources | -11 -10 -10 ----------- Run | Yrd Mat Sub Matter Collected 1364 | 290 378 696 Remotely . | . . . Salvage Created 1554 | 261 829 464 Parts 105 | 23 51 31 Haulers Intercepted 2 | . 2 . Recyclers Shooed 1 | 1 . . Parts Field Recycled . | . . . Retrieved Matter . | . . . Parts Self-Destructed 11 | . . 11 Prevented . | . . . Kills | -11 -10 -10 ------- Run | Yrd Mat Sub Combat Hostiles Destroyed 35 | . 15 20 Cannons 16 | . 11 5 AOE 17 | . 3 14 Classes Destroyed 10 | 3 6 1 Worker 2 | 1 1 . Builder 1 | . 1 . Tunneler 7 | 7 . . Hauler 2 | . 2 . Recycler 3 | 1 2 . Operator 2 | . 2 . Watcher 3 | . 3 . Swarmer 13 | . 6 7 Grunt 9 | . 9 . Subdweller 13 | . . 13 Best Kill Streak 6 | 6 6 4 Combat Bots Only 5 | . 5 4 Max Kills in Single Turn 4 | 2 4 2 Gunslinging . | . . . Exploded 3 | . 3 2 Melee . | . . . Uniques/NPCs Destroyed . | . . . Combat | -11 -10 -10 -------- Run | Yrd Mat Sub Hostile Shots Fired 152 | . 61 91 Missed 57 | . 18 39 Damage Taken 1332 | . 496 836 Core 265 | . 76 189 Absorbed by Shields . | . . . Regen/Repaired (Parts) 133 | . 133 . Core Remaining (%) 100 | 100 . . Volleys Fired 127 | 19 52 56 Largest 2 | 2 2 2 Hottest 148 | 80 136 148 Shots Fired 223 | 30 93 100 Gun 30 | 30 . . Cannon 163 | . 92 71 Launcher 30 | . 1 29 Special . | . . . Kinetic . | . . . Thermal 171 | 8 92 71 Explosive 30 | . 1 29 Electromagnetic 22 | 22 . . Robot Hit Streak 18 | 8 10 18 Robot Miss Streak 3 | 3 3 1 Penetration Max . | . . . Secondary Targets . | . . . Shots Hit Robots 99 | 18 54 27 Core Hits 60 | 9 26 25 Critical Kills 2 | . 1 1 Critical Parts Destroyed . | . . . Critical Strikes 2 | . 1 1 Meltdown 2 | . 1 1 Melee Attacks 1 | . . 1 Impact 1 | . . 1 Slashing . | . . . Piercing . | . . . Sneak Attacks . | . . . Combat Hostiles . | . . . Follow-up Attacks . | . . . Damage Inflicted 3454 | 283 1426 1745 Guns 248 | 248 . . Cannons 1706 | . 1176 530 Explosions 1500 | 35 250 1215 Melee . | . . . Ramming . | . . . Kinetic . | . . . Thermal 1814 | 108 1176 530 Explosive 1465 | . 250 1215 Electromagnetic 175 | 175 . . Impact . | . . . Slashing . | . . . Piercing . | . . . Highest Corruption . | . . . Average Corruption . | . . . Corruption Purged . | . . . Corruption Blocked . | . . . Overload Shots . | . . . Overflow Damage 129 | . 58 71 Projectiles 22 | . 22 . Explosions 107 | . 36 71 Melee . | . . . Knockbacks . | . . . Impact . | . . . Kinetic . | . . . Secondary . | . . . Self-Inflicted Damage 162 | . 98 64 Shots 4 | . 1 3 Rammed . | . . . Targets Rammed . | . . . Kicked . | . . . Crushed . | . . . Highest Temperature 382 | 144 382 48 Average Temperature 98 | 44 121 15 Received Heat Transfer 297 | . 96 201 Effects 5 | . 5 . Energy Bleed 4 | . 4 . Matter Decay 1 | . 1 . Siege Activations . | . . . Robots Corrupted . | . . . Combat Hostiles . | . . . Parts Fried . | . . . Impact Corruptions . | . . . Robots Melted 2 | . 1 1 Combat Hostiles 2 | . 1 1 Parts Melted 6 | . 1 5 Heat Transferred 3195 | 272 1998 925 Parts Sabotaged . | . . . Parts Stolen . | . . . Parts Stripped . | . . . Power Chain Reactions 1 | 1 . . Alert | -11 -10 -10 ------- Run | Yrd Mat Sub Peak Influence 294 | 45 294 . Initial 29 | . 29 . Average 65 | 27 71 . Maximum Alert Level 1 | . 1 . Low Security (%) 90 | 100 89 . Level 1 9 | . 10 . Level 2 . | . . . Level 3 . | . . . Level 4 . | . . . Level 5 . | . . . High Security . | . . . Max Security . | . . . Squads Dispatched 3 | . 3 . Investigation 1 | . 1 . Extermination . | . . . Reinforcement 2 | . 2 . Assault . | . . . Garrison . | . . . Intercept . | . . . Searches Triggered . | . . . Construction Impeded . | . . . Haulers Reinforced . | . . . Active Scanning Responses . | . . . Cargo Convoy Interrupts . | . . . Stealth | -11 -10 -10 --------- Run | Yrd Mat Sub Distress Signals 2 | . 2 . Communications Jammed . | . . . Distress Signals . | . . . Times Spotted 39 | . 20 19 Peak Tracking Total 7 | . 7 6 Tactical Retreats 2 | . . 2 Traps | -11 -10 -10 ------- Run | Yrd Mat Sub Traps Triggered 2 | . . 2 Indirectly . | . . . Trap Hack Attempts . | . . . Triggered . | . . . Disarmed . | . . . Reprogrammed . | . . . Reused . | . . . Traps Extracted . | . . . Installed . | . . . Triggered . | . . . Machines | -11 -10 -10 ---------- Run | Yrd Mat Sub Machines Disabled 3 | . 3 . Max in Single Turn 1 | . 1 . Machines Repaired . | . . . Machines Dismantled . | . . . Machines Sabotaged . | . . . Overloaded Fab Kills . | . . . Hacking | -11 -10 -10 --------- Run | Yrd Mat Sub Machines Accessed 8 | . 7 1 Terminals 6 | . 6 . Fabricators . | . . . Repair Stations 1 | . 1 . Recycling Units . | . . . Scanalyzers . | . . . Garrison Access . | . . . Total Hacks 33 | . 30 3 Successful 20 | . 17 3 Failed 13 | . 13 . Catastrophic 2 | . 2 . Database Lockouts . | . . . Manual 21 | . 21 . Terminals 22 | . 22 . Fabricators . | . . . Repair Stations 8 | . 8 . Recycling Units . | . . . Scanalyzers . | . . . Garrison Access . | . . . Terminal Hacks 8 | . 5 3 Record 3 | . . 3 Robot Analysis 2 | . 2 . Prototype ID Bank 2 | . 2 . Terminal Index 1 | . 1 . Fabricator Hacks . | . . . Repair Station Hacks 5 | . 5 . Scan Component 3 | . 3 . Repair 2 | . 2 . Recycling Unit Hacks . | . . . Scanalyzer . | . . . Garrison Access Hacks . | . . . Unauthorized Hacks 7 | . 7 . Terminals 7 | . 7 . Botnet 1 | . 1 . Skim 6 | . 6 . Fabricators . | . . . Repair Stations . | . . . Recycling Units . | . . . Scanalyzers . | . . . Garrison Access . | . . . Data Cores Recovered . | . . . Used . | . . . Hacking Detections 7 | . 7 . Full Trace Events 1 | . 1 . Feedback Events . | . . . Feedback Blocked . | . . . Robot Schematics Acquired . | . . . Robots Built . | . . . Authchips . | . . . Time . | . . . Total Robot Build Rating . | . . . Part Schematics Acquired . | . . . Parts Built . | . . . Authchips . | . . . Time . | . . . Total Part Build Rating . | . . . Parts Repaired 2 | . 2 . Time 115 | . 115 . Parts Recycled . | . . . Recycled Matter . | . . . Retrieved Matter . | . . . Retrieved Components . | . . . Parts Scanalyzed . | . . . Part Schematics Acquired . | . . . Parts Damaged . | . . . Bothacking | -11 -10 -10 ------------ Run | Yrd Mat Sub Used RIF Installer . | . . . Robots Hacked . | . . . Non-combat . | . . . Combat . | . . . Robot Hacks Applied . | . . . Relay Couplers Released . | . . . Fabnet Peak Effective % . | . . . Robots Rewired . | . . . Allies Hacked . | . . . Hacks Repelled . | . . . Allies | -11 -10 -10 -------- Run | Yrd Mat Sub Total Allies . | . . . Largest Group . | . . . Highest-Rated Group . | . . . Highest-Rated Ally . | . . . Total Orders . | . . . Ally Attacks . | . . . Total Damage . | . . . Kills . | . . . Allies Corrupted . | . . . Allies Melted . | . . . Intel | -11 -10 -10 ------- Run | Yrd Mat Sub Robot Analysis Total 2 | . 2 . Derelict Logs Recovered 1 | . . 1 Drone Launches . | . . . Drone Recoveries . | . . . Exploration | -11 -10 -10 ------------- Run | Yrd Mat Sub Turns Passed 9767 | 369 2669 6729 Spaces Moved 2764 | 190 673 1901 Core 2 | 2 . . Treads 2643 | 188 561 1894 Legs . | . . . Wheels 119 | . 112 7 Hover . | . . . Flight . | . . . Fastest Speed 50 | 50 160 215 Average Speed 315 | 158 288 340 Slowest Speed 360 | 160 320 360 Overloaded Moves . | . . . Propulsion Burnouts . | . . . Robots Hopped . | . . . Cave-ins Triggered . | . . . Exploration Rate (%) 67 | 9 99 93 Regions Visited 2 Branch Regions 1 Pre-discovered Areas 2 | . 1 1 Known Exits Taken . | . . . Unknown Exits Taken 2 | 1 1 . Scrap Searched 4 | . . 4 Spaces Dug 15 | . . 15 Terrain Destroyed 189 | . 37 152 Melee 1 | . . 1 Projectile 2 | . 1 1 AOE 186 | . 36 150 Terrain Rammed . | . . . Walls Destroyed . | . . . Machines Disabled . | . . . Actions | -11 -10 -10 --------- Run | Yrd Mat Sub Total 3590 | 224 1319 2047 Wait 566 | . 525 41 Move 2762 | 189 672 1901 Hop . | . . . Pick Up 50 | 5 36 9 Fast Attach 13 | 7 4 2 Attach 5 | 1 2 2 Detach 2 | 1 1 . Swap 35 | 1 8 26 Drop 29 | 1 19 9 Fire 127 | 19 52 56 Melee 1 | . . 1 Ram . | . . . Kick . | . . . Crush . | . . . Escape Stasis . | . . . Rewire . | . . . Trap . | . . . Miscellaneous . | . . . Route ------- -11/Scrapyard -10/Materials (discovered 6 exits: *Mat x3 / *Min x2 / *Sub) -10/Subcaves (discovered 2 exits: [*Mat x2]) History --------- Turn | Location | Event 10 | -11/Scrapyard | Discovered new exit (range 16) 370 | -11/Scrapyard | Entered Materials 371 | -10/Materials | Build established: Mutant 539 | -10/Materials | Discovered new exit (range 15) 721 | -10/Materials | Discovered new exit (range 16) 983 | -10/Materials | Discovered new exit (range 14) 1382 | -10/Materials | Learned 2 Mines zone layouts 1451 | -10/Materials | Learned location of Recycling (-7) 1512 | -10/Materials | Loaded intel: 23 trap records 1561 | -10/Materials | Learned Storage security intel 1645 | -10/Materials | Identified exit to Mines 1645 | -10/Materials | Identified exit to Materials 1700 | -10/Materials | Learned 2 Mines zone layouts 1810 | -10/Materials | Discovered exit to Materials (range 5) 2901 | -10/Materials | Repaired Adv. Beam Cannon 2967 | -10/Materials | Repaired Broken Adv. Beam Cannon 3024 | -10/Materials | Discovered new exit (range 4) 3039 | -10/Materials | Entered Subcaves 3039 | -10/Subcaves | Discovered new exit (range 10) 3048 | -10/Subcaves | Shifting Twisted Machinery released Sub. Optics 3191 | -10/Subcaves | Shifting Twisted Machinery released Flamer 3206 | -10/Subcaves | Shifting Twisted Machinery released Ripper 3244 | -10/Subcaves | Core integrity fell below 50% 4068 | -10/Subcaves | Shifting Twisted Machinery released Sub. Laser 4974 | -10/Subcaves | Core integrity fell below 20% 5636 | -10/Subcaves | Discovered new exit (range 14) 6386 | -10/Subcaves | Shifting Twisted Machinery released Flamer 6434 | -10/Subcaves | Visited Clippyterm 6444 | -10/Subcaves | Learned location of Deep Caves (-6) 6474 | -10/Subcaves | Shifting Twisted Machinery released Sub. Monowheel 7359 | -10/Subcaves | Disturbed a concealed Subdweller 7359 | -10/Subcaves | Disturbed a concealed Subdweller 9768 | -10/Subcaves | Destroyed by MA-A72(R) with Subdweller Machine Gun Last Messages --------------- 07372_ Acquired 34 matter. 07376_ Searching scrap... 07376_ Found Sub. Power Source. 07376_ Found Flamer. 07376_ Found 44 Matter. 07377_ Acquired 44 matter. 07382_ Subatomizers dissect the Sub. Beam Cannon. 07383_ Acquired Sub. Power Source. 07391_ Acquired 59 matter. 07467_ Subatomizers dissect the Lgt. Treads, destroying it. 08260_ UN-WFS(u) tweaks Twisted Machinery. 08447_ Dropped Mni. Grenade Launcher. 08447_ Acquired Mak. System Shield. 08842_ Searching scrap... 08842_ Found Battle Cannon. 08842_ Found 53 Matter. 08843_ Acquired 53 matter. 08850_ Subatomizers dissect the Battle Cannon. Map ----- +----------------------------------------------------+ | #??????# #?????????????????????????????????????? | | ##???## #?????????????????????????????????????? | | #??## ##????????????????????????????????????? | | #### #????????????????????????????????????? | | #????????????????????????????????????? | | #######????????????????????????????????????? | | ####???????????????????????????????????????? | | #???????????????????????????????????????? | | ##???????????????????????????????????????? | | ##????????????????????????????????????????? | | ##?????????????????????????????????????????? | | #####??????????????????????????????????????????? | | #??????????????????????????????????????????????? | | #??????????????????????????????????????????????? | | #??????????????????????????????????????????????? | | #????????????????????????????????????????????### | | ##??????????????????####??????????###????????## | | #???????????????????<<<<###??????## ##??????## | | #???????????????????? < ##???### ###????# | | #???????????????????? #??## ####?# # | | "#?????????????????????$ < ##?# ### ## | | #????????????#"???????$ <#?# ### ## | | ##???????????#" ???????R ^ <#?## ####### # | | #???????????#" "?????? <#??## #????## # | | #???????????#" ?##### <#???# #???## # | | ##????????????#" # @ <<#??## ##??# # | | ##?????????????# ##<<##?## ##?## | | #??????????????## <<## "####??# #### | | #?????###?????#######" "###???# & | | #?????# ##???## ### " ###?# ### & ##### | | #????## ##??# ######?### &#&" "# | | #?#### ##?# ##??????## #"] # | | ### ## ###### #???????## # &&## | | " #??## #???????## #"" # | | #### #??????## ##&#& | | ### ## # ##??##### & | | ??######## ##???# # | | ???## #### ##???# # | | ???# #### ## ##????# ### | | ?### ## ## ##?????## #??# | | ## ### ##???????#####???# | | # ### ##### ##???????????????## | | # ## #?#### #???####???????????????## | | ## # ###??## ##?????????????????????## | | ## ## # ##??###??????????????????????# | | # #???????????????????????????# ### | | ## ###???####????????????????????# ##?## | | ### #????## #????????????????????## ##??# | | ## ##???## #?????????????????????# #### | | ## #???## #?????????????????????# ## | +----------------------------------------------------+ Best States ------------- Heat Dissipation 35 Energy Generation 15 Energy Capacity 250 Matter Stores 300 Matter Capacity 300 Sight Range 16 Terrain Scan Range 16 Terrain Scan Density 10 Armor Coverage 100 Evasion (%) 40 Recoil Reduction 2 Item Schematics ----------------- None Robot Schematics ------------------ None Fabricated ------------ Nothing Alien Tech Used ----------------- None Achievements -------------- None Challenges ------------ None Game ------ Seed ExpertImpulseTelecube Manual? 0 Play Time 00:28:47 Cumulative 345.9 hours Start 2024.09.30 @ 05:38:36 End 2024.09.30 @ 06:06:03 Sessions 1 Manual Loads 0 Difficulty Rogue Special Mode None Game No. 251 Rogue 246 Adventurer 5 Explorer 0 Win Type - Total 7 Types 4/0/3/0/0/0/0/0/0 Lore% 67 Gallery% 85 Achievement% 70 Wizard Run 0 Options --------- Layout 2 ASCII 0 Keyboard 0 Movement Mouse Keybinds 0 Fullscreen 2 Font 24/Smallcaps Map View 50x44 Zoom Use 0% Tactical HUD 1 Map Filters NONE Filters NONE Steam 1 RUN: ff5d72cd-7007-400b-b341-84ddd053bfd8